fUST/lending_fUST_20250810
["ID","MTS","AMOUNT","RATE_DAILY","PERIOD"]
[378251654,1754797861566,-460.0,0.00023156,2]
[378251656,1754797861575,-460.0,0.00023156,2]
[378251658,1754797861585,-460.0,0.00023156,2]
[378251660,1754797861594,-473.41877686,0.00023156,2]
[378251662,1754797861603,-460.0,0.00023156,2]
[378251664,1754797861616,-460.0,0.00023156,2]
[378251666,1754797861625,-460.0,0.00023156,2]
[378251668,1754797861634,-460.0,0.00023156,2]
[378251670,1754797861644,-550.04,0.00023156,2]
[378251672,1754797861654,-891.45,0.00023156,2]
[378251674,1754797861663,-460.0,0.00023156,2]
[378251676,1754797861672,-460.0,0.00023156,2]
[378251678,1754797861681,-460.0,0.00023156,2]
[378251680,1754797861692,-151.0,0.00023158,7]
[378251682,1754797861702,-308.131549,0.00023158,7]
[378251684,1754797861711,-308.131549,0.00023158,7]
[378251686,1754797861723,-959.66,0.00023194,2]
[378251688,1754797861733,-436.81487036,0.00023195,2]
[378251690,1754797861741,-487.78423436,0.00023195,2]
[378251691,1754797861751,-489.9004916,0.00023195,2]
[378251694,1754797861760,-477.78,0.00023195,2]
[378251696,1754797861769,-460.0,0.00023195,2]
[378251697,1754797861779,-460.0,0.00023196,2]
[378251699,1754797861788,-478.97471011,0.00023196,2]
[378251701,1754797861798,-1010.69,0.00023196,2]
[378251703,1754797861807,-492.09376707,0.00023196,2]
[378251705,1754797861816,-460.0,0.00023196,2]
[378251707,1754797861825,-557.19,0.00023196,2]
[378251709,1754797861835,-263.54304095,0.00023223,2]
[378251711,1754797861844,-460.0,0.00023227,2]
[378251713,1754797861854,-460.0,0.00023227,2]
[378251715,1754797861863,-460.0,0.00023227,2]
[378251717,1754797861872,-524.06486653,0.00023227,2]
[378251719,1754797861881,-460.0,0.00023227,2]
[378251721,1754797861890,-474.58669953,0.00023227,2]
[378251723,1754797861900,-460.0,0.00023227,2]
[378251725,1754797861909,-460.0,0.00023227,2]
[378251727,1754797861919,-477.67482129,0.00023227,2]
[378251729,1754797861928,-460.0,0.00023227,2]
[378251731,1754797861937,-460.0,0.00023227,2]
[378251733,1754797861946,-460.0,0.00023227,2]
[378251735,1754797861956,-460.0,0.00023227,2]
[378251737,1754797861965,-460.0,0.00023227,2]
[378251739,1754797861974,-1761.24,0.00023227,2]
[378251741,1754797861984,-460.0,0.00023227,2]
[378251743,1754797861993,-627.15,0.00023227,2]
[378251745,1754797862002,-154.13560178,0.00023247,2]
[378251747,1754797862011,-153.19746771,0.00023247,2]
[378251749,1754797862020,-151.0,0.00023247,2]
[378251751,1754797862029,-151.0,0.00023247,2]
[378251753,1754797862038,-260.0,0.00023259,2]
[378251755,1754797862047,-168.0,0.00023262,2]
[378251757,1754797862056,-168.0,0.00023275,2]
[378251759,1754797862065,-168.0,0.00023284,2]
[378251761,1754797862074,-460.0,0.00023298,2]
[378251763,1754797862085,-460.0,0.00023298,2]
[378251765,1754797862094,-460.0,0.00023298,2]
[378251767,1754797862103,-460.0,0.00023298,2]
[378251769,1754797862113,-460.0,0.00023298,2]
[378251771,1754797862122,-460.0,0.00023298,2]
[378251773,1754797862131,-460.0,0.00023298,2]
[378251775,1754797862140,-460.0,0.00023298,2]
[378251777,1754797862150,-460.0,0.00023298,2]
[378251779,1754797862160,-464.68,0.00023298,2]
[378251781,1754797862170,-460.0,0.00023298,2]
[378251783,1754797862179,-460.0,0.00023298,2]
[378251784,1754797862189,-460.0,0.00023298,2]
[378251787,1754797862199,-545.37,0.00023298,2]
[378251789,1754797862208,-468.72,0.00023298,2]
[378251790,1754797862218,-401.97,0.00023298,2]
[378251792,1754797862229,-460.0,0.00023298,2]
[378251794,1754797862239,-151.0,0.000233,8]
[378251796,1754797862248,-240.689495,0.00023303,7]
[378251798,1754797862257,-240.689488,0.00023303,7]
[378251800,1754797862267,-460.0,0.00023318,2]
[378251802,1754797862276,-460.0,0.00023318,2]
[378251804,1754797862285,-460.0,0.00023318,2]
[378251806,1754797862295,-1101.0,0.00023341,2]
[378251808,1754797862304,-168.0,0.00023345,2]
[378251810,1754797862314,-460.0,0.00023349,2]
[378251812,1754797862323,-2150.0,0.00023384,2]
[378251814,1754797862333,-985.642,0.00023384,2]
[378251816,1754797862343,-636.0,0.00023384,2]
[378251818,1754797862352,-250.0,0.00023384,2]
[378251821,1754797862362,-420.0,0.00023386,2]
[378251823,1754797862371,-420.0,0.00023386,2]
[378251824,1754797862381,-420.0,0.00023386,2]
[378251827,1754797862391,-5519.83208177,0.00023409,2]
[378251828,1754797862401,-460.0,0.0002343,2]
[378251830,1754797862411,-460.0,0.0002343,2]
[378251832,1754797862420,-783.73,0.0002343,2]
[378251834,1754797862430,-423.22671607,0.0002343,2]
[378251836,1754797862439,-343.96,0.0002343,2]
[378251839,1754797862449,-1545.89,0.0002343,2]
[378251840,1754797862458,-904.25,0.0002343,2]
[378251842,1754797862468,-460.0,0.0002343,2]
[378251844,1754797862478,-460.0,0.0002343,2]
[378251845,1754797862487,-327.72,0.0002343,2]
[378251846,1754797862497,-460.0,0.0002343,2]
[378251847,1754797862506,-460.0,0.0002343,2]
[378251848,1754797862515,-460.0,0.0002343,2]
[378251849,1754797862525,-550.04,0.0002343,2]
[378251850,1754797862534,-891.45,0.0002343,2]
[378251851,1754797862543,-460.0,0.0002343,2]
[378251852,1754797862553,-488.73,0.0002343,2]
[378251853,1754797862562,-460.0,0.0002343,2]
[378251854,1754797862572,-151.0,0.00023446,7]
[378251855,1754797862582,-151.0,0.00023446,7]
[378251856,1754797862591,-754.5,0.0002346,3]
[378251857,1754797862600,-377.26,0.0002346,3]
[378251858,1754797862611,-477.78,0.00023469,2]
[378251859,1754797862620,-460.0,0.00023469,2]
[378251860,1754797862629,-460.0,0.0002347,2]
[378251861,1754797862639,-1010.69,0.0002347,2]
[378251862,1754797862648,-460.0,0.0002347,2]
[378251863,1754797862658,-557.19,0.0002347,2]
[378251864,1754797862668,-1509.02,0.0002349,3]
[378251865,1754797862678,-1680.0,0.00023495,2]
[378251866,1754797862697,-151.0,0.000235,5]
[378251867,1754797862719,-474.33435065,0.00023501,2]
[378251868,1754797862738,-460.0,0.00023501,2]
[378251869,1754797862749,-460.0,0.00023501,2]
[378251870,1754797862759,-460.0,0.00023501,2]
[378251871,1754797862768,-460.0,0.00023501,2]
[378251872,1754797862777,-460.0,0.00023501,2]
[378251873,1754797862787,-460.0,0.00023501,2]
[378251874,1754797862798,-460.0,0.00023501,2]
[378251875,1754797862807,-460.0,0.00023501,2]
[378251877,1754797862816,-1761.24,0.00023501,2]
[378251879,1754797862826,-460.0,0.00023501,2]
[378251881,1754797862836,-627.15,0.00023501,2]
[378251883,1754797862846,-219.32935922,0.00023513,2]
[378251885,1754797862855,-309.0,0.0002352,2]
[378251898,1754797862956,-484.81535733,0.00023521,2]
[378251900,1754797862978,-504.87690347,0.00023521,2]
[378251902,1754797862987,-506.1256659,0.00023521,2]
[378251904,1754797862996,-1000.0,0.00023521,2]
[378251906,1754797863006,-1000.0,0.00023521,2]
[378251908,1754797863016,-939.97536417,0.00023521,2]
[378251910,1754797863026,-849.64465254,0.00023521,2]
[378251912,1754797863035,-1000.0,0.00023521,2]
[378251914,1754797863045,-1000.0,0.00023521,2]
[378251916,1754797863055,-1000.0,0.00023521,2]
[378251918,1754797863064,-1016.63213011,0.00023521,2]
[378251920,1754797863073,-1000.0,0.00023521,2]
[378251922,1754797863083,-797.85269224,0.00023521,2]
[378251924,1754797863092,-1000.0,0.00023521,2]
[378251926,1754797863101,-151.0,0.00023521,2]
[378251928,1754797863111,-281.71526347,0.00023561,2]
[378251930,1754797863120,-308.131549,0.00023567,7]
[378251932,1754797863129,-308.131549,0.00023567,7]
[378251934,1754797863138,-151.0,0.0002357,7]
[378251936,1754797863147,-151.0,0.0002357,7]
[378251938,1754797863157,-151.0,0.0002357,7]
[378251940,1754797863166,-171.9368,0.0002357,7]
[378251942,1754797863175,-308.131549,0.0002357,7]
[378251943,1754797863185,-308.131549,0.0002357,7]
[378251945,1754797863195,-173.0,0.00023572,3]
[378251948,1754797863205,-166.0,0.00023572,3]
[378251950,1754797863215,-173.0,0.00023572,3]
[378251952,1754797863225,-173.0,0.00023572,3]
[378251953,1754797863235,-175.29485704,0.00023572,3]
[378251955,1754797863245,-166.0,0.00023572,3]
[378251957,1754797863254,-170.99936538,0.00023572,3]
[378251959,1754797863264,-166.0,0.00023572,3]
[378251961,1754797863274,-166.0,0.00023572,3]
[378251963,1754797863283,-152.0,0.00023572,3]
[378251965,1754797863292,-166.0,0.00023572,3]
[378251967,1754797863302,-152.0,0.00023572,3]
[378251969,1754797863311,-152.0,0.00023572,3]
[378251971,1754797863321,-152.0,0.00023572,3]
[378251973,1754797863331,-152.0,0.00023572,3]
[378251975,1754797863341,-166.0,0.00023572,3]
[378251977,1754797863350,-152.0,0.00023572,3]
[378251979,1754797863360,-167.00063462,0.00023572,3]
[378251981,1754797863370,-152.0,0.00023572,3]
[378251983,1754797863379,-166.0,0.00023572,3]
[378251985,1754797863389,-152.0,0.00023572,3]
[378251987,1754797863398,-271.1255198,0.00023572,3]
[378251989,1754797863408,-152.0,0.00023572,3]
[378251991,1754797863418,-152.0,0.00023572,3]
[378251993,1754797863428,-1759.0,0.00023572,3]
[378251995,1754797863437,-1759.0,0.00023572,3]
[378251997,1754797863446,-152.0,0.00023572,3]
[378251999,1754797863456,-1759.0,0.00023572,3]
[378252001,1754797863465,-152.0,0.00023572,3]
[378252003,1754797863474,-1759.0,0.00023572,3]
[378252005,1754797863483,-325.0,0.00023572,3]
[378252007,1754797863492,-152.0,0.00023572,3]
[378252009,1754797863501,-1759.0,0.00023572,3]
[378252011,1754797863511,-325.0,0.00023572,3]
[378252013,1754797863521,-152.0,0.00023572,3]
[378252015,1754797863530,-1759.0,0.00023572,3]
[378252017,1754797863540,-325.0,0.00023572,3]
[378252019,1754797863549,-1759.0,0.00023572,3]
[378252021,1754797863559,-152.0,0.00023572,3]
[378252023,1754797863568,-325.0,0.00023572,3]
[378252025,1754797863577,-1759.0,0.00023572,3]
[378252027,1754797863587,-152.0,0.00023572,3]
[378252029,1754797863596,-1759.0,0.00023572,3]
[378252031,1754797863606,-325.0,0.00023572,3]
[378252033,1754797863619,-1837.51077045,0.00023572,3]
[378252035,1754797863629,-325.0,0.00023572,3]
[378252037,1754797863638,-1759.0,0.00023572,3]
[378252039,1754797863647,-325.0,0.00023572,3]
[378252041,1754797863658,-1759.0,0.00023572,3]
[378252043,1754797863668,-325.0,0.00023572,3]
[378252045,1754797863677,-152.0,0.00023572,3]
[378252047,1754797863688,-325.02396012,0.00023572,3]
[378252049,1754797863697,-152.0,0.00023572,3]
[378252051,1754797863706,-325.0,0.00023572,3]
[378252053,1754797863715,-325.0,0.00023572,3]
[378252055,1754797863726,-152.0,0.00023572,3]
[378252057,1754797863735,-152.0,0.00023572,3]
[378252059,1754797863744,-1759.0,0.00023572,3]
[378252061,1754797863753,-325.0,0.00023572,3]
[378252063,1754797863763,-152.0,0.00023572,3]
[378252065,1754797863774,-1759.0,0.00023572,3]
[378252067,1754797863783,-325.0,0.00023572,3]
[378252069,1754797863793,-1759.0,0.00023572,3]
[378252071,1754797863803,-460.0,0.00023572,2]
[378252073,1754797863812,-460.0,0.00023572,2]
[378252075,1754797863821,-460.0,0.00023572,2]
[378252077,1754797863832,-460.0,0.00023572,2]
[378252079,1754797863841,-460.0,0.00023572,2]
[378252081,1754797863850,-460.0,0.00023572,2]
[378252083,1754797863859,-477.66186932,0.00023572,2]
[378252084,1754797863870,-460.0,0.00023572,2]
[378252087,1754797863879,-460.0,0.00023572,2]
[378252089,1754797863889,-460.0,0.00023572,2]
[378252090,1754797863898,-545.37,0.00023572,2]
[378252092,1754797863908,-468.72,0.00023572,2]
[378252095,1754797863920,-460.0,0.00023572,2]
[378252096,1754797863932,-460.0,0.00023592,2]
[378252098,1754797863943,-460.0,0.00023592,2]
[378252100,1754797863952,-477.52261026,0.00023592,2]
[378252103,1754797863962,-6182.92291706,0.00023599,2]
[378252104,1754797863971,-151.0,0.00023609,7]
[378252106,1754797863981,-460.0,0.00023623,2]
[378252108,1754797863990,-492.0,0.00023655,3]
[378252110,1754797864000,-500.0,0.00023673,2]
[378252112,1754797864010,-596.74055736,0.00023673,2]
[378252114,1754797864019,-500.0,0.00023673,2]
[378252116,1754797864028,-503.22127586,0.00023673,2]
[378252118,1754797864040,-600.0,0.00023673,2]
[378252121,1754797864052,-500.62919646,0.00023673,2]
[378252122,1754797864061,-501.93470404,0.00023673,2]
[378252124,1754797864070,-158.43049232,0.00023673,2]
[378252126,1754797864081,-160.43202297,0.00023673,2]
[378252128,1754797864090,-500.0,0.00023673,2]
[378252130,1754797864100,-500.0,0.00023673,2]
[378252132,1754797864110,-501.80908859,0.00023673,2]
[378252134,1754797864120,-500.0,0.00023673,2]
[378252136,1754797864131,-503.53489927,0.00023673,2]
[378252138,1754797864140,-503.67486532,0.00023673,2]
[378252140,1754797864150,-501.178231,0.00023673,2]
[378252142,1754797864160,-500.0,0.00023673,2]
[378252144,1754797864170,-500.0,0.00023673,2]
[378252146,1754797864179,-500.0,0.00023673,2]
[378252148,1754797864189,-570.45536374,0.00023673,2]
[378252150,1754797864198,-500.0,0.00023673,2]
[378252152,1754797864209,-500.99193689,0.00023673,2]
[378252154,1754797864219,-500.0,0.00023673,2]
[378252156,1754797864229,-500.0,0.00023673,2]
[378252158,1754797864239,-500.0,0.00023673,2]
[378252160,1754797864249,-500.0,0.00023673,2]
[378252162,1754797864259,-180.03204138,0.00023673,2]
[378252164,1754797864268,-500.0,0.00023673,2]
[378252166,1754797864278,-500.0,0.00023673,2]
[378252168,1754797864288,-500.0,0.00023673,2]
[378252170,1754797864297,-500.0,0.00023673,2]
[378252172,1754797864307,-500.0,0.00023673,2]
[378252174,1754797864316,-500.0,0.00023673,2]
[378252176,1754797864326,-500.0,0.00023673,2]
[378252178,1754797864338,-363.79189942,0.00023688,3]
[378252180,1754797864348,-325.0,0.00023688,3]
[378252182,1754797864358,-325.0,0.00023688,3]
[378252184,1754797864368,-325.0,0.00023688,3]
[378252186,1754797864377,-325.0,0.00023688,3]
[378252188,1754797864386,-325.0,0.00023688,3]
[378252190,1754797864396,-325.0,0.00023688,3]
[378252192,1754797864406,-325.0,0.00023688,3]
[378252194,1754797864416,-325.0,0.00023688,3]
[378252196,1754797864425,-325.0,0.00023688,3]
[378252198,1754797864434,-325.0,0.00023688,3]
[378252200,1754797864444,-325.0,0.00023688,3]
[378252202,1754797864453,-325.0,0.00023688,3]
[378252204,1754797864462,-325.0,0.00023688,3]
[378252206,1754797864472,-325.0,0.00023688,3]
[378252208,1754797864481,-325.0,0.00023688,3]
[378252209,1754797864490,-325.0,0.00023688,3]
[378252211,1754797864500,-325.0,0.00023688,3]
[378252213,1754797864509,-325.0,0.00023688,3]
[378252215,1754797864518,-325.0,0.00023688,3]
[378252217,1754797864527,-325.0,0.00023688,3]
[378252219,1754797864536,-325.0,0.00023688,3]
[378252221,1754797864546,-325.0,0.00023688,3]
[378252223,1754797864555,-325.0,0.00023688,3]
[378252225,1754797864564,-325.0,0.00023688,3]
[378252227,1754797864573,-325.0,0.00023688,3]
[378252229,1754797864583,-325.0,0.00023688,3]
[378252231,1754797864592,-325.0,0.00023688,3]
[378252233,1754797864601,-325.0,0.00023688,3]
[378252235,1754797864614,-325.0,0.00023688,3]
[378252237,1754797864623,-325.0,0.00023688,3]
[378252239,1754797864633,-325.0,0.00023688,3]
[378252241,1754797864642,-325.0,0.00023688,3]
[378252243,1754797864653,-325.0,0.00023688,3]
[378252245,1754797864662,-325.0,0.00023688,3]
[378252247,1754797864672,-325.0,0.00023688,3]
[378252249,1754797864681,-325.0,0.00023688,3]
[378252251,1754797864696,-325.0,0.00023688,3]
[378252253,1754797864705,-277.16309331,0.00023688,3]
[378252255,1754797864714,-325.0,0.00023688,3]
[378252257,1754797864723,-325.0,0.00023688,3]
[378252259,1754797864734,-325.0,0.00023688,3]
[378252261,1754797864743,-325.0,0.00023688,3]
[378252263,1754797864752,-325.0,0.00023688,3]
[378252265,1754797864762,-325.0,0.00023688,3]
[378252267,1754797864771,-325.0,0.00023688,3]
[378252269,1754797864780,-325.0,0.00023688,3]
[378252271,1754797864789,-325.0,0.00023688,3]
[378252273,1754797864798,-325.0,0.00023688,3]
[378252275,1754797864807,-325.0,0.00023688,3]
[378252277,1754797864817,-325.0,0.00023688,3]
[378252279,1754797864826,-325.0,0.00023688,3]
[378252281,1754797864835,-325.0,0.00023688,3]
[378252283,1754797864844,-325.0,0.00023688,3]
[378252285,1754797864853,-325.0,0.00023688,3]
[378252287,1754797864862,-325.0,0.00023688,3]
[378252289,1754797864872,-325.0,0.00023688,3]
[378252291,1754797864881,-325.0,0.00023688,3]
[378252293,1754797864889,-325.0,0.00023688,3]
[378252295,1754797864900,-325.0,0.00023688,3]
[378252296,1754797864909,-325.0,0.00023688,3]
[378252298,1754797864918,-325.0,0.00023688,3]
[378252300,1754797864928,-325.0,0.00023688,3]
[378252302,1754797864937,-325.0,0.00023688,3]
[378252304,1754797864946,-151.0,0.000237,9]
[378252306,1754797864955,-160.0,0.000237,3]
[378252308,1754797864964,-461.62346162,0.000237,3]
[378252311,1754797864974,-231.96268195,0.000237,3]
[378252312,1754797864983,-12668.57659669,0.000237,3]
[378252314,1754797864993,-216.64838636,0.000237,3]
[378252316,1754797865002,-460.0,0.00023704,2]
[378252320,1754797865023,-460.0,0.00023704,2]
[378252322,1754797865037,-783.73,0.00023704,2]
[378252324,1754797865047,-1545.89,0.00023704,2]
[378252326,1754797865057,-904.25,0.00023704,2]
[378252328,1754797865067,-228.52675816,0.00023704,2]
[378252888,1754797974654,4967.84887368,0.000199,2]
[378252889,1754798031094,203.855084,0.00020662,2]
[378252890,1754798159227,4802.25391134,0.000199,2]
[378252891,1754798160932,156.85,0.0002,14]
[378252892,1754798210415,10000.0,0.00020527,2]
[378252893,1754798307766,284.907987,0.00013699,2]
[378252894,1754798307890,284.907987,0.00020187,2]
[378252896,1754798337875,4642.17878102,0.000199,2]
[378252897,1754798537552,4497.77878749,0.000199,2]
[378252898,1754798732712,4347.8461369,0.000199,2]
[378252901,1754798834648,2100.0,0.0002,5]
[378252902,1754798853843,1800.0,0.00021,5]
[378252903,1754798868592,1500.0,0.0002,5]
[378252904,1754798876872,24900.0,0.00020521,2]
[378252906,1754798914670,900.0,0.00021,5]
[378252907,1754798916142,4272.01154276,0.000199,2]
[378252908,1754798979305,163.084067,0.00020521,2]
[378252952,1754799032544,-300.0,0.00021509,2]
[378252954,1754799032554,-277.0,0.00021509,2]
[378252956,1754799032565,-465.8,0.0002151,2]
[378252958,1754799032577,-107.01579224,0.0002151,2]
[378252961,1754799032591,-352.98420776,0.0002151,2]
[378252963,1754799032601,-460.0,0.0002151,2]
[378252964,1754799032611,-460.0,0.0002151,2]
[378252965,1754799032623,-465.42199997,0.0002151,2]
[378252966,1754799032633,-652.1,0.0002151,2]
[378252967,1754799032644,-582.66717859,0.0002151,2]
[378252968,1754799032655,-460.0,0.0002151,2]
[378252969,1754799032665,-470.80845691,0.0002151,2]
[378252970,1754799032675,-460.67239175,0.0002151,2]
[378252971,1754799032686,-1410.35,0.0002151,2]
[378252972,1754799032696,-472.26171471,0.0002151,2]
[378252973,1754799032707,-460.0,0.0002151,2]
[378252974,1754799032716,-794.55,0.0002151,2]
[378252975,1754799032727,-460.0,0.0002151,2]
[378252976,1754799032738,-462.5954893,0.0002151,2]
[378252977,1754799032749,-460.0,0.0002151,2]
[378252978,1754799032759,-460.0,0.0002151,2]
[378252979,1754799032769,-460.0,0.0002151,2]
[378252980,1754799032780,-460.0,0.0002151,2]
[378252981,1754799032790,-460.0,0.0002151,2]
[378252982,1754799032800,-460.0,0.0002151,2]
[378252983,1754799032814,-460.0,0.0002151,2]
[378252984,1754799032825,-462.58693441,0.0002151,2]
[378252985,1754799032836,-219.61239014,0.0002151,2]
[378252986,1754799032849,-463.70658138,0.0002151,2]
[378252987,1754799032859,-460.99857477,0.0002151,2]
[378252988,1754799032869,-5991.10336521,0.0002151,2]
[378252989,1754799032882,-460.0,0.00021511,2]
[378252990,1754799032893,-464.40130189,0.00021511,2]
[378252991,1754799032904,-263.57619824,0.00021511,2]
[378252992,1754799032914,-460.0,0.00021511,2]
[378252993,1754799032925,-474.70872341,0.00021511,2]
[378252994,1754799032935,-478.58452453,0.00021511,2]
[378252995,1754799032945,-442.78638074,0.00021511,2]
[378252996,1754799032956,-464.61827104,0.00021511,2]
[378252997,1754799032967,-460.0,0.00021511,2]
[378252998,1754799032977,-460.0,0.00021511,2]
[378252999,1754799032987,-460.0,0.00021511,2]
[378253000,1754799032997,-460.0,0.00021511,2]
[378253001,1754799033008,-464.59963666,0.00021511,2]
[378253002,1754799033019,-460.0,0.00021511,2]
[378253004,1754799033031,-460.0,0.00021511,2]
[378253005,1754799033042,-460.0,0.00021511,2]
[378253007,1754799033059,-460.0,0.00021511,2]
[378253009,1754799033070,-194.23864873,0.00021511,2]
[378253011,1754799033081,-463.52594927,0.00021512,2]
[378253013,1754799033094,-506.98,0.00021512,2]
[378253015,1754799033105,-460.0,0.00021512,2]
[378253017,1754799033116,-460.0,0.00021512,2]
[378253019,1754799033128,-460.0,0.00021512,2]
[378253021,1754799033139,-507.29278908,0.00021512,2]
[378253023,1754799033151,-460.0,0.00021549,2]
[378253025,1754799033162,-460.0,0.00021549,2]
[378253027,1754799033172,-460.0,0.00021549,2]
[378253028,1754799033183,-460.0,0.00021549,2]
[378253031,1754799033194,-466.58606968,0.00021549,2]
[378253033,1754799033205,-466.62826441,0.00021549,2]
[378253035,1754799033216,-421.65353124,0.00021549,2]
[378253037,1754799033227,-476.18337302,0.00021549,2]
[378253039,1754799033238,-423.5625703,0.00021549,2]
[378253041,1754799033249,-460.0,0.00021549,2]
[378253043,1754799033260,-460.0,0.00021549,2]
[378253045,1754799033270,-460.0,0.00021549,2]
[378253047,1754799033281,-460.0,0.00021549,2]
[378253049,1754799033292,-267.36285227,0.00021549,2]
[378253051,1754799033303,-515.80422355,0.00021549,2]
[378253053,1754799033314,-500.0,0.00021549,2]
[378253055,1754799033324,-500.0,0.00021549,2]
[378253058,1754799033335,-500.0,0.00021549,2]
[378253060,1754799033346,-500.0,0.00021549,2]
[378253062,1754799033356,-500.0,0.00021549,2]
[378253064,1754799033367,-500.0,0.00021549,2]
[378253066,1754799033376,-500.0,0.00021549,2]
[378253068,1754799033390,-500.0,0.00021549,2]
[378253070,1754799033399,-500.0,0.00021549,2]
[378253072,1754799033409,-500.0,0.00021549,2]
[378253074,1754799033419,-500.0,0.00021549,2]
[378253076,1754799033428,-131.74926434,0.00021549,2]
[378253583,1754799038398,-344.114,0.0002151,2]
[378253595,1754799038505,-115.886,0.0002151,2]
[378253598,1754799038525,-319.114,0.00021512,2]
[378253600,1754799038538,-140.886,0.00021512,2]
[378253603,1754799038548,-368.25073566,0.00021549,2]
[378253605,1754799038558,-500.0,0.00021549,2]
[378253607,1754799038567,-500.0,0.00021549,2]
[378253609,1754799038576,-500.0,0.00021549,2]
[378253611,1754799038586,-500.0,0.00021549,2]
[378253613,1754799038596,-154.6859626,0.00021549,2]
[378253615,1754799038606,-500.0,0.00021549,2]
[378253617,1754799038615,-294.91591639,0.00021549,2]
[378253619,1754799038625,-500.0,0.00021549,2]
[378253621,1754799038634,-461.73871891,0.00021549,2]
[378253623,1754799038644,-460.0,0.00021549,2]
[378253625,1754799038653,-460.0,0.00021549,2]
[378253627,1754799038664,-460.0,0.00021549,2]
[378253629,1754799038674,-460.0,0.00021549,2]
[378253631,1754799038683,-460.0,0.00021549,2]
[378253633,1754799038693,-460.0,0.00021549,2]
[378253635,1754799038702,-460.0,0.00021549,2]
[378253637,1754799038711,-460.0,0.00021549,2]
[378253639,1754799038721,-460.0,0.00021549,2]
[378253641,1754799038731,-460.0,0.00021549,2]
[378253643,1754799038742,-460.0,0.00021549,2]
[378253645,1754799038752,-460.0,0.00021549,2]
[378253648,1754799038762,-482.6,0.00021549,2]
[378253649,1754799038772,-460.0,0.00021549,2]
[378253651,1754799038782,-460.0,0.00021549,2]
[378253654,1754799038791,-460.0,0.00021549,2]
[378253656,1754799038801,-460.0,0.00021549,2]
[378253658,1754799038811,-460.0,0.00021549,2]
[378253660,1754799038820,-116.38218244,0.00021549,2]
[378253804,1754799040452,-354.24656682,0.00021549,2]
[378253805,1754799040462,-322.113419,0.00021549,2]
[378253806,1754799040474,-137.886581,0.00021549,2]
[378253807,1754799040483,-187.96058039,0.0002155,2]
[378253808,1754799040506,-274.64737662,0.0002155,2]
[378253809,1754799040515,-466.66019394,0.0002155,2]
[378253810,1754799040525,-467.31033862,0.0002155,2]
[378253811,1754799040535,-462.3980945,0.0002155,2]
[378253812,1754799040545,-460.81427979,0.0002155,2]
[378253813,1754799040554,-464.19793412,0.0002155,2]
[378253814,1754799040564,-465.37657297,0.0002155,2]
[378253815,1754799040573,-464.17842823,0.0002155,2]
[378253816,1754799040583,-353.57013596,0.0002155,2]
[378253817,1754799040592,-462.98728476,0.0002155,2]
[378253818,1754799040602,-462.85466851,0.0002155,2]
[378253819,1754799040611,-465.2753234,0.0002155,2]
[378253820,1754799040621,-460.0,0.0002155,2]
[378253821,1754799040631,-467.03996205,0.0002155,2]